bitfinex/quotes_BTCUSD_20251212
["timestamp","ask_amount","ask_price","bid_price","bid_amount"]
[1765560510021,0.00200713,89978.0,89977.0,0.04717]
[1765560510246,0.00200713,89978.0,89977.0,0.02945]
[1765560510458,0.00200713,89978.0,89977.0,0.006]
[1765560510671,0.30430279,89978.0,89977.0,0.006]
[1765560511097,0.37381279,89978.0,89977.0,0.006]
[1765560511312,0.15153624,89978.0,89977.0,0.006]
[1765560511559,0.00362,89978.0,89977.0,0.006]
[1765560511781,0.00200713,89978.0,89977.0,0.006]
[1765560513348,0.00200713,89978.0,89977.0,0.05527]
[1765560513563,0.00200713,89978.0,89977.0,0.171718]
[1765560513952,0.00200713,89978.0,89977.0,0.17628963]
[1765560515232,0.00200713,89978.0,89977.0,0.1762905]
[1765560515819,0.00200713,89978.0,89977.0,0.1508225]
[1765560516019,0.00200713,89978.0,89977.0,0.14625]
[1765560516221,0.00200713,89978.0,89977.0,0.006]
[1765560516421,0.00200713,89978.0,89977.0,0.12553]
[1765560516720,0.00100713,89978.0,89977.0,0.12553]
[1765560516953,0.00200713,89978.0,89977.0,0.17845605]
[1765560517132,0.00200713,89978.0,89977.0,0.169718]
[1765560517354,0.00100713,89978.0,89977.0,0.165718]
[1765560517517,0.00200713,89978.0,89977.0,0.1753448]
[1765560517967,0.00100713,89978.0,89977.0,0.1703448]
[1765560518168,0.00100713,89978.0,89977.0,0.1271568]
[1765560518392,0.00200713,89978.0,89977.0,0.1743448]
[1765560518570,0.00200713,89978.0,89977.0,0.1763448]
[1765560519533,0.00200713,89978.0,89977.0,0.18858402]
[1765560520793,0.00200713,89978.0,89977.0,0.18335731]
[1765560521300,0.00200713,89978.0,89977.0,0.18856312]
[1765560523023,0.00011642,90000.0,89997.0,0.23333993]
[1765560523231,0.00011642,90000.0,89999.0,0.07886]
[1765560523453,0.00011642,90000.0,89997.0,0.02883148]
[1765560523664,0.00077607,90000.0,89999.0,0.02959]
[1765560524432,0.00077607,90000.0,89999.0,0.15212]
[1765560524984,0.00077607,90000.0,89999.0,0.37434469]
[1765560525211,0.00077607,90000.0,89993.0,0.01772]
[1765560525400,0.00011642,90000.0,89993.0,0.02883197]
[1765560525606,0.01122753,90000.0,89993.0,0.02883197]
[1765560526006,0.0111116,89996.0,89993.0,0.01772]
[1765560526205,0.0128404,90000.0,89993.0,0.01772]
[1765560526206,0.00272929,90000.0,89993.0,0.23995754]
[1765560526412,0.00272929,90000.0,89999.0,0.04927]
[1765560526628,0.00011642,90000.0,89999.0,0.04927]
[1765560526848,0.00011642,90000.0,89999.0,0.34775469]
[1765560527047,0.00011642,90000.0,89999.0,0.34475469]
[1765560527717,0.00011642,90000.0,89999.0,0.38794269]
[1765560527921,0.00011642,90000.0,89999.0,0.34875469]
[1765560528064,0.00011642,90000.0,89999.0,0.39194269]
[1765560528262,0.00011642,90000.0,89999.0,0.34875469]
[1765560528505,0.00011642,90000.0,89999.0,0.12653]
[1765560528707,0.00011642,90000.0,89999.0,0.004]
[1765560528950,0.00172929,90000.0,89999.0,0.004]
[1765560529147,0.00172929,90000.0,89999.0,0.002]
[1765560529524,0.00172929,90000.0,89986.0,0.07326]
[1765560529525,0.01111123,89999.0,89989.0,0.01768]
[1765560529850,0.00172929,90000.0,89999.0,0.004]
[1765560530062,0.00172929,90000.0,89999.0,0.27149469]
[1765560530258,0.00172929,90000.0,89999.0,0.34143469]
[1765560530259,0.00011642,90000.0,89999.0,0.34143469]
[1765560530446,0.00011642,90000.0,89999.0,0.34243469]
[1765560530796,0.00011642,90000.0,89999.0,0.38362269]
[1765560531013,0.00011642,90000.0,89999.0,0.002]
[1765560531221,0.00077607,90000.0,89999.0,0.004]
[1765560531427,0.00077607,90000.0,89999.0,0.002]
[1765560532502,0.00077607,90000.0,89997.0,0.01111148]
[1765560532735,0.00011642,90000.0,89997.0,0.23334024]
[1765560532943,0.00011642,90000.0,89999.0,0.22422469]
[1765560533155,0.00011642,90000.0,89999.0,0.27212469]
[1765560533384,0.00011642,90000.0,89999.0,0.39282481]
[1765560533597,0.00011642,90000.0,89999.0,0.003]
[1765560533812,0.22233864,90000.0,89999.0,0.005]
[1765560534017,0.00011642,90000.0,89999.0,0.003]
[1765560534396,0.00011642,90000.0,89999.0,0.006]
[1765560534597,0.00011642,90000.0,89999.0,0.003]
[1765560534801,0.00011642,90000.0,89993.0,0.01111197]
[1765560534950,0.01111123,89999.0,89991.0,0.01768]
[1765560535151,0.01111135,89998.0,89991.0,0.02879222]
[1765560535347,0.00011642,90000.0,89995.0,0.01111172]
[1765560535567,0.00011642,90000.0,89997.0,0.01111148]
[1765560535771,0.00011642,90000.0,89999.0,0.002]
[1765560535978,0.00011642,90000.0,89998.0,0.22222481]
[1765560536634,0.00011642,90000.0,89999.0,0.0479]
[1765560536834,0.00011642,90000.0,89999.0,0.11684]
[1765560537039,0.00011642,90000.0,89999.0,0.11984]
[1765560537240,0.00011642,90000.0,89999.0,0.11784]
[1765560539266,0.00011642,90000.0,89999.0,0.11984]
[1765560539690,0.00077607,90000.0,89999.0,0.11984]
[1765560539875,0.00077607,90000.0,89999.0,0.0509]
[1765560540322,0.00238894,90000.0,89999.0,0.003]
[1765560540753,0.00238894,90000.0,89999.0,0.0509]
[1765560541167,0.00238894,90000.0,89999.0,0.002]
[1765560541382,0.14871259,90000.0,89999.0,0.002]
[1765560541801,0.01111283,89986.0,89982.0,0.01768]
[1765560542028,0.22225432,89987.0,89979.0,0.06894]
[1765560542246,0.01111345,89981.0,89974.0,0.02959]
[1765560542452,0.01111382,89978.0,89974.0,0.02959]
[1765560542660,0.01111296,89985.0,89980.0,0.05901358]
[1765560542867,0.23337848,89983.0,89975.0,0.06894]
[1765560543101,0.01135274,89986.0,89980.0,0.01111358]
[1765560543309,0.01111321,89983.0,89981.0,0.003]
[1765560543519,0.01111308,89984.0,89981.0,0.003]
[1765560543727,0.01111296,89985.0,89981.0,0.003]
[1765560543936,0.01111358,89980.0,89974.0,0.03359]
[1765560544142,0.01111308,89984.0,89977.0,0.01111395]
[1765560544405,0.01111333,89982.0,89977.0,0.01111395]
[1765560544614,0.00023991,89986.0,89982.0,0.01111333]
[1765560544817,0.00023991,89986.0,89985.0,0.0479]
[1765560545153,0.00023991,89986.0,89985.0,0.11684]
[1765560545934,0.00023991,89986.0,89985.0,0.11884]
[1765560546072,0.00023991,89986.0,89985.0,0.34109926]
[1765560546894,0.00023991,89986.0,89985.0,0.34309926]
[1765560547142,0.2224967,89986.0,89985.0,0.004]
[1765560547378,0.36750007,89986.0,89985.0,0.004]
[1765560548305,0.2224967,89986.0,89985.0,0.002]
[1765560548513,0.00023991,89986.0,89985.0,0.0509]
[1765560548661,0.00023991,89986.0,89985.0,0.003]
[1765560548866,0.00023991,89986.0,89985.0,0.001]
[1765560548867,0.04852278,89986.0,89985.0,0.001]
[1765560549101,0.00185278,89986.0,89985.0,0.001]
[1765560549321,0.00185278,89986.0,89985.0,0.0489]
[1765560549741,0.00185278,89986.0,89985.0,0.002]
[1765560549899,0.01111308,89984.0,89979.0,0.0111137]
[1765560550104,0.01111308,89984.0,89978.0,0.01111382]
[1765560550105,0.01111321,89983.0,89978.0,0.01111382]
[1765560550303,0.0111137,89979.0,89974.0,0.06894]
[1765560550510,0.01111382,89978.0,89974.0,0.06894]
[1765560550707,0.01111358,89980.0,89975.0,0.01111419]
[1765560550942,0.01111358,89980.0,89974.0,0.06894]
[1765560551149,0.01111382,89978.0,89974.0,0.06894]
[1765560551311,0.0111137,89979.0,89974.0,0.06894]
[1765560551509,0.01111382,89978.0,89974.0,0.06894]
[1765560551763,0.01111382,89978.0,89972.0,0.01768]
[1765560551764,0.01111407,89976.0,89972.0,0.01111456]
[1765560551968,0.01111395,89977.0,89975.0,0.002]
[1765560552173,0.01111395,89977.0,89972.0,0.01111456]
[1765560552343,0.01111382,89978.0,89973.0,0.08005444]
[1765560552541,0.01111382,89978.0,89974.0,0.002]
[1765560552745,0.01111358,89980.0,89974.0,0.00571013]
[1765560553074,0.01111296,89985.0,89979.0,0.0590137]
[1765560553398,0.00023991,89986.0,89984.0,0.0479]
[1765560553805,0.00023991,89986.0,89984.0,0.27016012]
[1765560553946,0.00023991,89986.0,89985.0,0.12176226]
[1765560554141,0.00023991,89986.0,89985.0,0.0479]
[1765560555163,0.01111493,89969.0,89965.0,0.06894]
[1765560555364,0.22231856,89961.0,89960.0,0.00100723]
[1765560555600,0.01111568,89963.0,89960.0,0.00100723]
[1765560555740,0.22231608,89962.0,89960.0,0.00100723]
[1765560556393,0.22231608,89962.0,89961.0,0.0479]
[1765560556544,0.22231608,89962.0,89960.0,0.00139403]
[1765560556545,0.04667,89961.0,89960.0,0.00139403]
[1765560556750,0.11942,89961.0,89960.0,0.00139403]
[1765560556955,0.11942,89961.0,89960.0,0.00239403]
[1765560557819,0.11942,89961.0,89960.0,0.00439403]
[1765560557989,0.11942,89961.0,89960.0,0.00239403]
[1765560558201,0.11942,89961.0,89960.0,0.00139403]
[1765560558402,0.22361993,89961.0,89960.0,0.00139403]
[1765560558601,0.24229993,89961.0,89960.0,0.00139403]
[1765560559311,0.28541492,89961.0,89960.0,0.00139403]
[1765560559482,1.28541492,89961.0,89960.0,0.00139403]
[1765560561738,1.24229993,89961.0,89960.0,0.00139403]
[1765560562290,1.28541492,89961.0,89960.0,0.00139403]
[1765560562491,1.24229993,89961.0,89960.0,0.00139403]
[1765560562690,1.28541492,89961.0,89960.0,0.00139403]
[1765560563572,1.57611492,89961.0,89960.0,0.00139403]
[1765560563779,1.82361492,89961.0,89960.0,0.00139403]
[1765560563986,1.87363331,89961.0,89960.0,0.00139403]
[1765560564209,1.62613331,89961.0,89960.0,0.00139403]
[1765560564802,1.62513331,89961.0,89960.0,0.00139403]
[1765560565017,1.62913331,89961.0,89960.0,0.00139403]
[1765560565225,1.63313331,89961.0,89960.0,0.00139403]
[1765560565431,1.48472286,89961.0,89960.0,0.00139403]
[1765560565592,1.48072286,89961.0,89960.0,0.00139403]
[1765560565798,1.43760787,89961.0,89960.0,0.00139403]
[1765560566002,1.46604286,89961.0,89960.0,0.00139403]
[1765560566221,1.59423048,89961.0,89960.0,0.00139403]
[1765560566572,1.59023048,89961.0,89960.0,0.00139403]
[1765560567030,1.59323048,89961.0,89960.0,0.00139403]
[1765560569593,1.82305048,89961.0,89960.0,0.00139403]
[1765560569796,1.84073048,89961.0,89960.0,0.00139403]
[1765560574231,1.80632048,89961.0,89960.0,0.00139403]
[1765560576580,0.80632048,89961.0,89960.0,0.00139403]
[1765560576781,1.76320549,89961.0,89960.0,0.00139403]
[1765560577032,0.22240508,89926.0,89914.0,0.03545]
[1765560577261,0.22279284,89926.0,89918.0,0.01112124]
[1765560577466,0.26923284,89926.0,89915.0,0.23355166]
[1765560577694,0.00038776,89926.0,89922.0,0.02768074]
[1765560577802,0.00038776,89926.0,89914.0,0.10569]
[1765560577803,0.26923284,89926.0,89916.0,0.22242978]
[1765560578017,0.33938284,89926.0,89914.0,0.03545]
[1765560578214,0.33938284,89926.0,89909.0,0.01656]
[1765560578436,0.33938284,89926.0,89925.0,0.00209]
[1765560579471,0.33938284,89926.0,89925.0,0.00409]
[1765560580226,0.35706284,89926.0,89925.0,0.00409]
[1765560581220,0.22279284,89926.0,89925.0,0.00409]
[1765560581467,0.33938284,89926.0,89925.0,0.00409]
[1765560582665,0.33938284,89926.0,89925.0,0.00514052]
[1765560583277,0.26923284,89926.0,89925.0,0.00514052]
[1765560583715,0.00038776,89926.0,89925.0,0.00514052]
[1765560583996,0.00038776,89926.0,89925.0,0.12534052]
[1765560585364,0.00038776,89926.0,89925.0,0.05510052]
[1765560585775,0.11697776,89926.0,89925.0,0.00514052]
[1765560585973,0.12372138,89926.0,89925.0,0.00514052]
[1765560586272,0.20998597,89926.0,89925.0,0.00514052]
[1765560587072,0.12533425,89926.0,89925.0,0.00514052]
[1765560587305,1.12533425,89926.0,89925.0,0.00514052]
[1765560587489,0.44539063,89926.0,89925.0,0.00514052]
[1765560587825,0.13627063,89926.0,89925.0,0.00514052]
[1765560588108,0.14301425,89926.0,89925.0,0.00314052]
[1765560588338,0.23059526,89926.0,89925.0,0.00114052]
[1765560588494,1.22385164,89926.0,89925.0,0.00114052]
[1765560588892,0.41245164,89926.0,89925.0,0.00114052]
[1765560589361,0.22385164,89926.0,89925.0,0.00114052]
[1765560589566,0.13727063,89926.0,89925.0,0.00114052]
[1765560589775,0.12633425,89926.0,89925.0,0.00114052]
[1765560589971,0.02742425,89926.0,89925.0,0.00114052]
[1765560590133,0.02068063,89926.0,89925.0,0.00114052]
[1765560590320,0.07351425,89926.0,89925.0,0.00114052]
[1765560591124,0.02068063,89926.0,89925.0,0.00114052]
[1765560591328,0.00300063,89926.0,89925.0,0.00114052]
[1765560591724,0.00138776,89926.0,89925.0,0.00114052]
[1765560593218,0.00038776,89926.0,89925.0,0.04893052]
[1765560593562,0.00038776,89926.0,89925.0,0.00214052]
[1765560594507,0.05609833,89926.0,89925.0,0.00214052]
[1765560594723,0.10218833,89926.0,89925.0,0.00214052]
[1765560595124,0.04647776,89926.0,89925.0,0.00214052]
[1765560595310,0.05322138,89926.0,89925.0,0.00214052]
[1765560595643,0.12124138,89926.0,89925.0,0.00214052]
[1765560595788,0.11449776,89926.0,89925.0,0.00214052]
[1765560596433,0.00038776,89926.0,89925.0,0.00214052]
[1765560596840,0.16496359,89926.0,89925.0,0.00214052]
[1765560597076,0.16657646,89926.0,89925.0,0.00214052]
[1765560597252,0.17332008,89926.0,89925.0,0.00214052]
[1765560597622,0.42082008,89926.0,89925.0,0.00214052]
[1765560597830,0.41407646,89926.0,89925.0,0.00214052]
[1765560598140,0.41407646,89926.0,89925.0,0.00114052]
[1765560598372,0.41507646,89926.0,89925.0,0.00114052]
[1765560598703,0.29659063,89926.0,89925.0,0.00114052]
[1765560598977,0.36461063,89926.0,89925.0,0.00214052]
[1765560599542,0.36361063,89926.0,89925.0,0.00214052]
[1765560600685,1.65431063,89926.0,89925.0,0.00214052]
[1765560600935,0.76361063,89926.0,89925.0,0.00214052]
[1765560601071,0.69679825,89926.0,89925.0,0.00214052]
[1765560601278,0.00038776,89926.0,89925.0,0.27033808]
[1765560601475,0.00038776,89926.0,89925.0,0.34487808]
[1765560601675,0.00038776,89926.0,89925.0,0.34587808]
[1765560601901,0.00038776,89926.0,89925.0,0.34487808]
[1765560602260,0.01111605,89960.0,89956.0,0.01111654]
[1765560602471,0.01111605,89960.0,89925.0,0.12247052]
[1765560602472,0.01111382,89978.0,89974.0,0.01111432]
[1765560602715,0.01111271,89987.0,89981.0,0.01111345]
[1765560602949,0.01111222,89991.0,89977.0,0.27768874]
[1765560602950,0.02999555,89995.0,89983.0,0.01111321]
[1765560603166,0.01111172,89995.0,89991.0,0.01111222]
[1765560603376,0.01111246,89989.0,89982.0,0.01111333]
[1765560603588,0.01111308,89984.0,89978.0,0.23995458]
[1765560603804,0.01111395,89977.0,89974.0,0.00011642]
[1765560604004,0.22228149,89976.0,89974.0,0.00011642]
[1765560604224,0.23339411,89977.0,89974.0,0.00011642]
[1765560604434,0.05283362,89975.0,89974.0,0.00011642]
[1765560604843,0.00674362,89975.0,89974.0,0.00011642]
[1765560605037,0.23339411,89977.0,89974.0,0.04690642]
[1765560605038,0.22228149,89976.0,89974.0,0.04690642]
[1765560605212,0.22228149,89976.0,89974.0,0.00011642]
[1765560605416,0.05283362,89975.0,89974.0,0.00011642]
[1765560605629,0.05444649,89975.0,89974.0,0.00111642]
[1765560605775,0.05444649,89975.0,89974.0,0.00011642]
[1765560606175,0.00835649,89975.0,89974.0,0.00111642]
[1765560606380,0.00835649,89975.0,89974.0,0.00011642]
[1765560607002,0.01111333,89982.0,89976.0,0.01111407]
[1765560607348,0.23461632,89999.0,89986.0,0.01111283]
[1765560607349,0.01111234,89990.0,89986.0,0.01111283]
[1765560607475,0.01239,89999.0,89991.0,0.01111222]
[1765560607683,0.01111172,89995.0,89987.0,0.03604]
[1765560608058,0.01111172,89995.0,89989.0,0.01111246]
[1765560608059,0.01111185,89994.0,89989.0,0.01111246]
[1765560608306,0.01111172,89995.0,89989.0,0.01111246]
[1765560608307,0.01111209,89992.0,89989.0,0.01111246]
[1765560608693,0.01111234,89990.0,89987.0,0.01111271]
[1765560608836,0.01111246,89989.0,89985.0,0.01111296]
[1765560609041,0.01111209,89992.0,89989.0,0.00811523]
[1765560609241,0.01111209,89992.0,89987.0,0.01111271]
[1765560609242,0.01111222,89991.0,89987.0,0.01111271]
[1765560609570,0.01111197,89993.0,89988.0,0.01111259]
[1765560609774,0.01111209,89992.0,89989.0,0.01111246]
[1765560609978,0.01111345,89981.0,89975.0,0.01111419]
[1765560610154,0.01111345,89981.0,89972.0,0.01111456]
[1765560610155,0.0111137,89979.0,89974.0,0.23351666]
[1765560610358,0.0111137,89979.0,89976.0,0.01111407]
[1765560610561,0.06802,90002.0,89980.0,0.01111358]
[1765560610741,0.01111222,89991.0,89986.0,0.01111283]
[1765560610947,0.01111259,89988.0,89982.0,0.22226667]
[1765560611168,0.01111222,89991.0,89987.0,0.04715271]
[1765560611367,0.01111222,89991.0,89988.0,0.01111259]
[1765560611574,0.79114135,90020.0,90010.0,0.01110987]
[1765560611773,0.80224999,90020.0,90014.0,0.01110938]
[1765560611996,0.79114135,90020.0,90019.0,0.30500531]
[1765560612215,0.79114135,90020.0,90019.0,0.03604]
[1765560612667,0.79152959,90020.0,90019.0,0.03604]
[1765560612891,1.01370244,90020.0,90019.0,0.03604]
[1765560613103,1.01370244,90020.0,89992.0,0.07454]
[1765560613104,0.01111098,90001.0,89992.0,0.07454]
[1765560613388,0.01111172,89995.0,89990.0,0.01768]
[1765560613508,0.22222962,89997.0,89990.0,0.01768]
[1765560613714,0.23335282,89993.0,89990.0,0.01768]
[1765560613930,0.0111079,90026.0,90017.0,0.01110901]
[1765560614134,0.0111079,90026.0,90005.0,0.01111049]
[1765560614135,0.79314246,90020.0,90019.0,0.001]
[1765560614867,0.79314246,90020.0,90019.0,0.03704]
[1765560615075,0.79414246,90020.0,90019.0,0.001]
[1765560615571,0.79314246,90020.0,90016.0,0.01110913]
[1765560615755,0.79314246,90020.0,90019.0,0.002]
[1765560616171,1.85175008,90020.0,90019.0,0.002]
[1765560616374,0.79314246,90020.0,90019.0,0.002]
[1765560616577,0.90725246,90020.0,90019.0,0.002]
[1765560616813,0.90725246,90020.0,90019.0,0.003]
[1765560617018,0.90725246,90020.0,90019.0,0.001]
[1765560617219,0.79314246,90020.0,90019.0,0.04779]
[1765560617409,0.79152959,90020.0,90019.0,0.34450531]
[1765560617565,0.79152959,90020.0,90019.0,0.34350531]
[1765560617766,0.79152959,90020.0,90019.0,0.39426543]
[1765560617948,0.79252959,90020.0,90019.0,0.39426543]
[1765560618150,0.79152959,90020.0,90019.0,0.39426543]
[1765560618402,0.79152959,90020.0,90019.0,0.26754531]
[1765560618598,0.79152959,90020.0,90019.0,0.12007]
[1765560618825,0.79152959,90020.0,90006.0,0.22220641]
[1765560618826,0.22218272,90016.0,90006.0,0.22220641]
[1765560619047,0.80363823,90020.0,90002.0,0.08581086]
[1765560619048,0.01110962,90012.0,90002.0,0.08581086]
[1765560619262,0.01110938,90014.0,90009.0,0.01111]
[1765560619500,0.22221481,90003.0,90001.0,0.03604]
[1765560619713,0.22225185,89988.0,89984.0,0.043188]
[1765560619914,0.22225185,89988.0,89984.0,0.01111308]
[1765560620142,0.01111308,89984.0,89979.0,0.0111137]
[1765560620346,0.22226015,89985.0,89970.0,0.01111481]
[1765560620347,0.01111419,89975.0,89970.0,0.01111481]
[1765560620555,0.01111382,89978.0,89975.0,0.01111419]
[1765560620762,0.0111137,89979.0,89976.0,0.01111407]
[1765560620985,0.00161287,89979.0,89971.0,0.22229385]
[1765560621200,0.00161287,89979.0,89940.0,1.06072836]
[1765560621201,0.22224161,89993.0,89976.0,0.23339366]
[1765560621416,0.01111037,90006.0,90000.0,0.22221977]
[1765560621625,0.01122679,90006.0,90002.0,0.01111086]
[1765560621852,0.00011642,90006.0,90005.0,0.03558]
[1765560622054,0.00011642,90006.0,90005.0,0.127178]
[1765560622256,0.00011642,90006.0,90005.0,0.21037437]
[1765560622468,0.00011642,90006.0,90005.0,0.194788]
[1765560622673,0.00011642,90006.0,90005.0,0.1516]
[1765560623361,0.00011642,90006.0,90005.0,0.03558]
[1765560623581,0.01111111,90000.0,89997.0,0.01768]
[1765560623785,0.22220987,90005.0,89998.0,0.01111135]
[1765560623786,0.01125,90001.0,89998.0,0.01111135]
[1765560623999,0.00161287,90005.0,90002.0,0.23332754]
[1765560624201,0.00161287,90005.0,90002.0,0.01111086]
[1765560624356,0.00161287,90005.0,90002.0,0.23332761]
[1765560624786,0.00011642,90006.0,90005.0,0.22420987]
[1765560625136,0.00011642,90006.0,90005.0,0.31680787]
[1765560625347,0.00011642,90006.0,90005.0,0.34122987]
[1765560625559,0.11908642,90006.0,90005.0,0.003]
[1765560626251,0.00011642,90006.0,90005.0,0.11602]
[1765560626459,0.00011642,90006.0,90005.0,0.41649742]
[1765560626679,0.00011642,90006.0,90005.0,0.40062207]
[1765560627222,0.00011642,90006.0,90005.0,0.40262207]
[1765560627487,0.00011642,90006.0,90005.0,0.40062207]
[1765560627716,0.00011642,90006.0,90005.0,0.40262207]
[1765560627919,0.00011642,90006.0,90005.0,0.40062207]
[1765560628128,0.00011642,90006.0,90005.0,0.40562207]
[1765560628305,0.00011642,90006.0,90005.0,0.40362207]
[1765560628684,0.00011642,90006.0,90005.0,0.40662207]
[1765560629055,0.00011642,90006.0,90005.0,0.40362207]
[1765560629459,0.00011642,90006.0,90005.0,0.40862207]
[1765560630279,0.00011642,90006.0,90005.0,0.74934046]
[1765560630493,0.79114135,90020.0,90019.0,0.26536331]
[1765560630699,0.79152928,90020.0,90019.0,0.38290923]
[1765560630906,0.79152928,90020.0,90019.0,0.45051923]
[1765560631097,0.79152928,90020.0,90019.0,0.50053762]
[1765560631742,0.47819928,90020.0,90019.0,0.50753762]
[1765560631928,0.47819928,90020.0,90019.0,0.45451923]
[1765560632310,0.47819928,90020.0,90019.0,0.45851923]
[1765560632520,0.47819928,90020.0,90019.0,0.34772123]
[1765560632730,0.47819928,90020.0,90019.0,0.34372123]
[1765560632962,0.47819928,90020.0,90019.0,0.004]
[1765560632963,0.47981215,90020.0,90019.0,0.004]
[1765560633178,0.47981215,90020.0,90019.0,0.051188]
[1765560633584,0.47981215,90020.0,90019.0,0.047188]
[1765560633969,0.47819928,90020.0,90019.0,0.164208]
[1765560634146,0.47819928,90020.0,90019.0,0.163208]
[1765560634350,0.47819928,90020.0,90019.0,0.159208]
[1765560634555,0.47819928,90020.0,90019.0,0.160208]
[1765560634782,0.47819928,90020.0,90019.0,0.05041]
[1765560634986,0.47819928,90020.0,90019.0,0.11802]
[1765560635251,0.47819928,90020.0,90019.0,0.11702]
[1765560635744,0.47819928,90020.0,90019.0,0.11802]
[1765560636564,0.47819928,90020.0,90019.0,0.161208]
[1765560637139,0.47819928,90020.0,90019.0,0.11802]
[1765560637544,0.16486928,90020.0,90019.0,0.21578546]
[1765560637743,0.23321003,90048.0,90041.0,0.01110605]
[1765560637946,0.01271805,90048.0,90045.0,0.01110555]
[1765560638158,0.01110642,90038.0,90034.0,0.04668691]
[1765560638326,0.01110592,90042.0,90035.0,0.01110679]
[1765560638551,0.01110555,90045.0,90039.0,0.01110629]
[1765560638772,0.23321931,90044.0,90041.0,0.01110605]
[1765560638974,0.01110642,90038.0,90035.0,0.043188]
[1765560639204,0.01110642,90038.0,90031.0,0.01110728]
[1765560639205,0.23324857,90033.0,90029.0,0.01110753]
[1765560639401,0.01110703,90033.0,90030.0,0.0111074]
[1765560639604,0.01110679,90035.0,90030.0,0.23325529]
[1765560639821,0.01271929,90038.0,90035.0,0.23324044]
[1765560639822,0.00161287,90038.0,90035.0,0.23324044]
[1765560640037,0.00161287,90038.0,90037.0,0.04841]
[1765560640241,0.00161287,90038.0,90037.0,0.2705409]
[1765560640406,0.23320315,90051.0,90043.0,0.0111058]
[1765560640609,0.22207663,90059.0,90050.0,0.07235494]
[1765560640806,0.0111042,90056.0,90053.0,0.01110457]
[1765560641003,0.23244929,90058.0,90053.0,0.01110457]
[1765560641004,0.02147425,90057.0,90054.0,0.01110444]
[1765560641202,0.01110432,90055.0,90054.0,0.06761]
[1765560641635,0.01110457,90053.0,90050.0,0.01284]
[1765560641852,0.01110457,90053.0,90043.0,0.03558]
[1765560641853,0.22211116,90045.0,90043.0,0.03558]
[1765560642071,0.01110605,90041.0,90037.0,0.01110654]
[1765560642226,0.01271842,90045.0,90040.0,0.04841]
[1765560642447,0.01110568,90044.0,90040.0,0.05951617]
[1765560642650,0.2332219,90043.0,90041.0,0.06761]
[1765560642853,0.01110629,90039.0,90035.0,0.01284]
[1765560643037,0.01110605,90041.0,90038.0,0.01110642]
[1765560643234,0.00161287,90043.0,90036.0,0.01110666]
[1765560643437,0.00161287,90043.0,90042.0,0.04841]
[1765560644280,0.00161287,90043.0,90042.0,0.11602]
[1765560644478,0.01110457,90053.0,90050.0,0.01110494]
[1765560644643,0.01110481,90051.0,90048.0,0.01110518]
[1765560644845,0.0111042,90056.0,90052.0,0.04841]
[1765560645042,0.23318046,90059.0,90055.0,0.04841]
[1765560645250,0.01110395,90058.0,90055.0,0.04841]
[1765560645448,0.22208157,90057.0,90055.0,0.04841]
[1765560645665,0.23321108,90048.0,90043.0,0.0111058]
[1765560645905,0.01110531,90047.0,90044.0,0.04417203]
[1765560646131,0.01110518,90048.0,90045.0,0.01110555]
[1765560646337,0.01110518,90048.0,90039.0,0.043188]
[1765560646338,0.22211116,90045.0,90038.0,0.01110642]
[1765560646484,0.01110642,90038.0,90034.0,0.01110691]
[1765560646682,0.23323609,90038.0,90034.0,0.01110691]
[1765560646886,0.00161287,90045.0,90041.0,0.01110605]
[1765560647111,0.23320065,90052.0,90046.0,0.01110543]
[1765560647270,0.23320065,90052.0,90051.0,0.03558]
[1765560647271,0.01110469,90052.0,90051.0,0.03558]
[1765560648992,0.01110469,90052.0,90051.0,0.03658]
[1765560649413,0.01110444,90054.0,90051.0,0.1526]
[1765560649637,0.22207409,90061.0,90057.0,0.01110407]
[1765560649972,0.2331934,90054.0,90051.0,0.03658]
[1765560650166,0.01110432,90055.0,90052.0,0.010419]
[1765560650510,0.22209143,90053.0,90051.0,0.03558]
[1765560650709,0.22209143,90053.0,90051.0,0.03658]
[1765560650892,0.22209343,90053.0,90051.0,0.001]
[1765560651107,0.22209343,90053.0,90040.0,0.01110617]
[1765560651108,0.22215064,90029.0,90021.0,0.01110851]
[1765560651312,0.22215064,90029.0,90023.0,0.01110827]
[1765560651528,0.22215064,90029.0,90019.0,0.02882876]
[1765560651529,0.01110839,90022.0,90019.0,0.01772]
[1765560651749,0.01110839,90022.0,90015.0,0.07305]
[1765560651750,0.01110876,90019.0,90015.0,0.07305]
[1765560651960,0.01110864,90020.0,90017.0,0.01110901]
[1765560652554,0.01110913,90016.0,90012.0,0.01110962]
[1765560653081,0.01110913,90016.0,90015.0,0.002]
[1765560653287,0.01110851,90021.0,90016.0,0.01110913]
[1765560653486,0.233279,90021.0,90017.0,0.002]
[1765560653632,0.01110851,90021.0,90017.0,0.002]
[1765560653834,0.01110864,90020.0,90017.0,0.01110901]
[1765560654052,0.01110851,90021.0,90017.0,0.01110901]
[1765560654053,0.01110851,90021.0,90018.0,0.01110888]
[1765560654270,0.01110839,90022.0,90018.0,0.01110888]
[1765560654505,0.01110901,90017.0,90014.0,0.01110938]
[1765560654704,0.22216393,90024.0,90018.0,0.22217778]
[1765560654984,0.01110814,90024.0,90021.0,0.01110851]
[1765560655180,0.01110851,90021.0,90017.0,0.01110901]
[1765560655383,0.0111079,90026.0,90020.0,0.23327989]
[1765560655610,0.01110802,90025.0,90021.0,0.01110851]
[1765560655811,0.01110814,90024.0,90021.0,0.01110851]
[1765560656016,0.01110827,90023.0,90020.0,0.01110864]
[1765560656226,0.01110814,90024.0,90020.0,0.01110864]
[1765560656427,0.01110814,90024.0,90021.0,0.01110851]
[1765560656632,0.01110827,90023.0,90019.0,0.01110876]
[1765560656840,0.2332763,90022.0,90018.0,0.01110888]
[1765560657061,0.01110814,90024.0,90019.0,0.23328407]
[1765560657275,0.01110814,90024.0,90017.0,0.001]
[1765560657276,0.27014736,90019.0,90017.0,0.001]
[1765560657508,0.04797,90018.0,90017.0,0.001]
[1765560657756,0.01110938,90014.0,90009.0,0.01111]
[1765560657976,0.01110851,90021.0,90018.0,0.01110888]
[1765560658114,0.23328149,90020.0,90017.0,0.04959]
[1765560658315,0.01110814,90024.0,90016.0,0.01743408]
[1765560658316,0.04797,90018.0,90016.0,0.01743408]
[1765560658526,0.23330423,90012.0,90007.0,0.01111024]
[1765560658725,0.01110962,90012.0,90007.0,0.01111024]
[1765560658927,0.06813,90036.0,90018.0,0.001]
[1765560659130,0.01110679,90035.0,90025.0,0.01110802]
[1765560659329,0.01110716,90032.0,90025.0,0.01110802]
[1765560659553,0.01110728,90031.0,90027.0,0.01110777]
[1765560659753,0.01110642,90038.0,90033.0,0.01110703]
[1765560659980,0.23323758,90037.0,90032.0,0.01110716]
[1765560660185,0.23324273,90035.0,90033.0,0.03726]
[1765560660389,0.23324503,90035.0,90033.0,0.03726]